lending/lending_fUSD_20251016
["ID","MTS","AMOUNT","RATE_DAILY","PERIOD"]
[391496092,1760622638303,-500.0,0.00019178,2]
[391496093,1760622638313,-500.0,0.00019178,2]
[391496094,1760622638323,-500.0,0.00019178,2]
[391496095,1760622638334,-1031.41,0.00019178,2]
[391496096,1760622638347,-500.0,0.00019178,2]
[391496097,1760622638357,-500.0,0.00019178,2]
[391496098,1760622638370,-1162.99,0.00019178,2]
[391496099,1760622638383,-1162.99,0.00019178,2]
[391496100,1760622638393,-500.0,0.00019178,2]
[391496101,1760622638404,-500.0,0.00019178,2]
[391496102,1760622638417,-500.0,0.00019178,2]
[391496103,1760622638505,-500.0,0.00019178,2]
[391496104,1760622638515,-500.0,0.00019178,2]
[391496105,1760622638525,-500.0,0.00019178,2]
[391496106,1760622638534,-500.2708718,0.00019178,2]
[391496107,1760622638543,-737.5,0.00019178,2]
[391496108,1760622638553,-500.0,0.00019178,2]
[391496109,1760622638563,-1123.95,0.00019178,2]
[391496110,1760622638577,-500.0,0.00019178,2]
[391496111,1760622638587,-160.899541,0.00019178,2]
[391496112,1760622638597,-500.53742169,0.00019178,2]
[391496113,1760622638607,-500.0,0.00019178,2]
[391496114,1760622638617,-500.0,0.00019178,2]
[391496115,1760622638627,-163.978737,0.00019178,2]
[391496116,1760622638637,-500.0,0.00019178,2]
[391496117,1760622638647,-644.74313637,0.00019178,2]
[391496118,1760622638657,-153.517125,0.00019178,2]
[391496119,1760622638671,-500.0,0.00019178,2]
[391496120,1760622638682,-500.0,0.00019178,2]
[391496121,1760622638693,-500.0,0.00019178,2]
[391496122,1760622638704,-500.0,0.00019178,2]
[391496123,1760622638714,-500.0,0.00019178,2]
[391496124,1760622638725,-500.0,0.00019178,2]
[391496125,1760622638736,-500.0,0.00019178,2]
[391496126,1760622638747,-500.0,0.00019178,2]
[391496127,1760622638758,-500.0,0.00019178,2]
[391496128,1760622638768,-500.0,0.00019178,2]
[391496129,1760622638778,-500.0,0.00019178,2]
[391496130,1760622638788,-637.75,0.00019178,2]
[391496131,1760622638798,-292.151233,0.00019178,2]
[391496132,1760622638808,-10481.01701,0.00019178,2]
[391496133,1760622638818,-500.0,0.00019178,2]
[391496134,1760622638828,-500.0,0.00019178,2]
[391496135,1760622638839,-500.0,0.00019178,2]
[391496136,1760622638849,-279.978265,0.00019178,2]
[391496137,1760622638859,-500.0,0.00019178,2]
[391496138,1760622638872,-500.0,0.00019178,2]
[391496139,1760622638883,-1214.15,0.00019178,2]
[391496140,1760622638893,-500.0,0.00019178,2]
[391496141,1760622638903,-365.920474,0.00019178,2]
[391496142,1760622638918,-6009.959883,0.00019178,2]
[391496143,1760622638928,-500.0,0.00019178,2]
[391496144,1760622638938,-227.748246,0.00019178,2]
[391496145,1760622638952,-500.0,0.00019178,2]
[391496146,1760622638962,-1312.43,0.00019178,2]
[391496147,1760622638973,-500.0,0.00019178,2]
[391496148,1760622638983,-500.0,0.00019178,2]
[391496149,1760622638994,-1220.84,0.00019178,2]
[391496150,1760622639005,-500.0,0.00019178,2]
[391496151,1760622639015,-500.0,0.00019178,2]
[391496152,1760622639025,-500.0,0.00019178,2]
[391496153,1760622639036,-500.0,0.00019178,2]
[391496154,1760622639047,-508.2,0.00019178,2]
[391496155,1760622639057,-995.09,0.00019178,2]
[391496156,1760622639067,-500.0,0.00019178,2]
[391496157,1760622639077,-500.0,0.00019178,2]
[391496158,1760622639087,-1525.11,0.00019178,2]
[391496159,1760622639098,-1525.11,0.00019178,2]
[391496160,1760622639108,-1224.05,0.00019178,2]
[391496161,1760622639118,-500.0,0.00019178,2]
[391496162,1760622639129,-564.71,0.00019178,2]
[391496163,1760622639140,-500.0,0.00019178,2]
[391496164,1760622639154,-4767.573027,0.00019178,2]
[391496165,1760622639167,-500.0,0.00019178,2]
[391496166,1760622639178,-500.0,0.00019178,2]
[391496167,1760622639188,-500.0,0.00019178,2]
[391496168,1760622639200,-500.0,0.00019178,2]
[391496169,1760622639210,-500.0,0.00019178,2]
[391496170,1760622639220,-500.0,0.00019178,2]
[391496171,1760622639231,-500.0,0.00019178,2]
[391496172,1760622639242,-500.0,0.00019178,2]
[391496173,1760622639252,-1014.27,0.00019178,2]
[391496174,1760622639263,-500.0,0.00019178,2]
[391496175,1760622639272,-779.37,0.00019178,2]
[391496176,1760622639283,-500.0,0.00019178,2]
[391496177,1760622639293,-500.0,0.00019178,2]
[391496178,1760622639304,-521.68894831,0.00019178,2]
[391496179,1760622639317,-500.0,0.00019178,2]
[391496180,1760622639327,-500.0,0.00019178,2]
[391496181,1760622639337,-500.0,0.00019178,2]
[391496182,1760622639347,-278.73856564,0.00019178,2]
[391496183,1760622639358,-500.0,0.00019178,2]
[391496184,1760622639371,-685.3,0.00019178,2]
[391496185,1760622639384,-500.0,0.00019178,2]
[391496186,1760622639394,-896.07,0.00019178,2]
[391496187,1760622639408,-500.0,0.00019178,2]
[391496188,1760622639429,-500.0,0.00019178,2]
[391496189,1760622639439,-1058.91,0.00019178,2]
[391496190,1760622639450,-500.0,0.00019178,2]
[391496191,1760622639462,-500.0,0.00019178,2]
[391496192,1760622639473,-500.0,0.00019178,2]
[391496193,1760622639482,-563.91,0.00019178,2]
[391496194,1760622639492,-800.24,0.00019178,2]
[391496195,1760622639502,-2222.82,0.00019178,2]
[391496196,1760622639512,-500.0,0.00019178,2]
[391496197,1760622639522,-500.0,0.00019178,2]
[391496198,1760622639532,-500.0,0.00019178,2]
[391496199,1760622639542,-970.75,0.00019178,2]
[391496200,1760622639552,-500.0,0.00019178,2]
[391496201,1760622639562,-500.0,0.00019178,2]
[391496204,1760622639571,-500.0,0.00019178,2]
[391496206,1760622639584,-500.0,0.00019178,2]
[391496208,1760622639593,-500.0,0.00019178,2]
[391496210,1760622639603,-500.0,0.00019178,2]
[391496212,1760622639613,-500.0,0.00019178,2]
[391496214,1760622639623,-500.0,0.00019178,2]
[391496216,1760622639633,-740.89,0.00019178,2]
[391496218,1760622639643,-500.0,0.00019178,2]
[391496220,1760622639652,-976.49,0.00019178,2]
[391496222,1760622639666,-500.0,0.00019178,2]
[391496224,1760622639675,-500.0,0.00019178,2]
[391496226,1760622639685,-500.0,0.00019178,2]
[391496228,1760622639694,-1658.18,0.00019178,2]
[391496230,1760622639704,-500.0,0.00019178,2]
[391496232,1760622639714,-454.77827519,0.00019178,2]
[391496234,1760622639723,-500.0,0.00019178,2]
[391496236,1760622639733,-500.0,0.00019178,2]
[391496239,1760622639743,-500.0,0.00019178,2]
[391496242,1760622639752,-500.0,0.00019178,2]
[391496245,1760622639762,-1031.59,0.00019178,2]
[391496246,1760622639772,-500.0,0.00019178,2]
[391496248,1760622639782,-1351.56,0.00019178,2]
[391496250,1760622639792,-500.0,0.00019178,2]
[391496253,1760622639802,-500.0,0.00019178,2]
[391496255,1760622639811,-500.0,0.00019178,2]
[391496257,1760622639821,-500.0,0.00019178,2]
[391496259,1760622639830,-481.47853721,0.00019178,2]
[391496261,1760622639840,-1569.02,0.00019178,2]
[391496264,1760622639852,-649.48,0.00019178,2]
[391496266,1760622639861,-500.0,0.00019178,2]
[391496268,1760622639871,-2029.65,0.00019178,2]
[391496269,1760622639880,-500.0,0.00019178,2]
[391496272,1760622639890,-500.0,0.00019178,2]
[391496275,1760622639914,-500.0,0.00019178,2]
[391496277,1760622639924,-500.0,0.00019178,2]
[391496279,1760622639934,-500.0,0.00019178,2]
[391496281,1760622639944,-418.54489293,0.00019178,2]
[391496283,1760622639954,-500.0,0.00019178,2]
[391496285,1760622639964,-500.0,0.00019178,2]
[391496287,1760622639974,-1882.54,0.00019178,2]
[391496289,1760622639984,-500.0,0.00019178,2]
[391496291,1760622639994,-500.0,0.00019178,2]
[391496293,1760622640004,-500.0,0.00019178,2]
[391496295,1760622640014,-500.0,0.00019178,2]
[391496297,1760622640024,-500.0,0.00019178,2]
[391496299,1760622640034,-500.0,0.00019178,2]
[391496301,1760622640044,-500.0,0.00019178,2]
[391496303,1760622640054,-2058.82,0.00019178,2]
[391496305,1760622640064,-549.51,0.00019178,2]
[391496307,1760622640074,-500.0,0.00019178,2]
[391496309,1760622640084,-500.0,0.00019178,2]
[391496311,1760622640094,-500.0,0.00019178,2]
[391496313,1760622640105,-500.0,0.00019178,2]
[391496315,1760622640115,-200.0,0.00019178,2]
[391496317,1760622640126,-150.0,0.00019178,2]
[391496319,1760622640136,-500.0,0.00019178,2]
[391496321,1760622640148,-500.0,0.00019178,2]
[391496324,1760622640164,-612.81988248,0.00019178,2]
[391496326,1760622640174,-150.0,0.00019178,2]
[391496328,1760622640186,-150.0,0.00019178,2]
[391496330,1760622640196,-500.0,0.00019178,2]
[391496332,1760622640206,-150.0,0.00019178,2]
[391496334,1760622640216,-2318.56,0.00019178,2]
[391496336,1760622640227,-500.0,0.00019178,2]
[391496338,1760622640238,-609.41,0.00019178,2]
[391496340,1760622640249,-151.0,0.00019178,2]
[391496342,1760622640259,-151.0,0.00019178,2]
[391496345,1760622640270,-151.0,0.00019178,2]
[391496347,1760622640280,-731.65,0.00019178,2]
[391496349,1760622640291,-500.0,0.00019178,2]
[391496352,1760622640301,-500.0,0.00019178,2]
[391496355,1760622640311,-795.28,0.00019178,2]
[391496357,1760622640321,-500.0,0.00019178,2]
[391496359,1760622640331,-500.0,0.00019178,2]
[391496360,1760622640341,-500.0,0.00019178,2]
[391496362,1760622640351,-1063.4,0.00019178,2]
[391496364,1760622640365,-660.71,0.00019178,2]
[391496366,1760622640377,-500.0,0.00019178,2]
[391496368,1760622640391,-500.0,0.00019178,2]
[391496370,1760622640401,-1048.14,0.00019178,2]
[391496372,1760622640414,-500.0,0.00019178,2]
[391496374,1760622640424,-689.6,0.00019178,2]
[391496376,1760622640434,-1363.52,0.00019178,2]
[391496378,1760622640444,-804.28,0.00019178,2]
[391496380,1760622640454,-624.28,0.00019178,2]
[391496382,1760622640465,-151.0,0.00019178,2]
[391496384,1760622640475,-1197.49,0.00019178,2]
[391496386,1760622640485,-167.693608,0.00019178,2]
[391496388,1760622640496,-151.0,0.00019178,2]
[391496389,1760622640506,-151.0,0.00019178,2]
[391496391,1760622640516,-151.0,0.00019178,2]
[391496393,1760622640527,-152.408935,0.00019178,2]
[391496395,1760622640537,-151.0,0.00019178,2]
[391496397,1760622640548,-702.02,0.00019178,2]
[391496399,1760622640558,-419.23500132,0.00019178,2]
[391496401,1760622640569,-977.61,0.00019178,2]
[391496403,1760622640580,-3586.28,0.00019178,2]
[391496405,1760622640590,-646.49,0.00019178,2]
[391496407,1760622640599,-897.14,0.00019178,2]
[391496409,1760622640611,-151.0,0.00019178,2]
[391496410,1760622640620,-151.0,0.00019178,2]
[391496412,1760622640630,-151.0,0.00019178,2]
[391496414,1760622640641,-500.0,0.00019178,2]
[391496416,1760622640651,-500.0,0.00019178,2]
[391496418,1760622640665,-532.74,0.00019178,2]
[391496420,1760622640675,-532.74,0.00019178,2]
[391496422,1760622640684,-895.4,0.00019178,2]
[391496423,1760622640694,-500.0,0.00019178,2]
[391496425,1760622640704,-500.0,0.00019178,2]
[391496426,1760622640713,-151.0,0.00019178,2]
[391496428,1760622640724,-500.0,0.00019178,2]
[391496430,1760622640736,-151.0,0.00019178,2]
[391496432,1760622640746,-500.0,0.00019178,2]
[391496434,1760622640756,-151.0,0.00019178,2]
[391496435,1760622640766,-152.549496,0.00019178,2]
[391496437,1760622640776,-500.0,0.00019178,2]
[391496439,1760622640786,-500.0,0.00019178,2]
[391496441,1760622640796,-2277.48,0.00019178,2]
[391496442,1760622640806,-151.0,0.00019178,2]
[391496444,1760622640817,-500.0,0.00019178,2]
[391496446,1760622640827,-189.5435,0.00019178,2]
[391496448,1760622640838,-952.68,0.00019178,2]
[391496450,1760622640848,-500.0,0.00019178,2]
[391496452,1760622640861,-500.0,0.00019178,2]
[391496454,1760622640872,-500.0,0.00019178,2]
[391496456,1760622640882,-599.24,0.00019178,2]
[391496458,1760622640893,-515.52166215,0.00019178,2]
[391496460,1760622640903,-500.0,0.00019178,2]
[391496462,1760622640918,-2936.3,0.00019178,2]
[391496463,1760622640929,-500.0,0.00019178,2]
[391496465,1760622640939,-500.0,0.00019178,2]
[391496467,1760622640949,-500.0,0.00019178,2]
[391496469,1760622640959,-500.0,0.00019178,2]
[391496471,1760622640969,-500.0,0.00019178,2]
[391496473,1760622640979,-500.0,0.00019178,2]
[391496475,1760622640988,-500.0,0.00019178,2]
[391496476,1760622640998,-500.0,0.00019178,2]
[391496478,1760622641008,-500.0,0.00019178,2]
[391496480,1760622641018,-467.65798686,0.00019178,2]
[391496482,1760622641028,-500.0,0.00019178,2]
[391496484,1760622641038,-868.59,0.00019178,2]
[391496486,1760622641048,-500.0,0.00019178,2]
[391496487,1760622641058,-151.0,0.00019178,2]
[391496489,1760622641067,-672.47,0.00019178,2]
[391496491,1760622641077,-655.91,0.00019178,2]
[391496493,1760622641088,-151.0,0.00019178,2]
[391496495,1760622641098,-500.0,0.00019178,2]
[391496497,1760622641107,-500.0,0.00019178,2]
[391496498,1760622641117,-500.0,0.00019178,2]
[391496500,1760622641126,-500.0,0.00019178,2]
[391496502,1760622641137,-500.0,0.00019178,2]
[391496504,1760622641146,-151.0,0.00019178,2]
[391496506,1760622641155,-289.052904,0.00019178,2]
[391496508,1760622641171,-500.0,0.00019178,2]
[391496510,1760622641182,-599.98,0.00019178,2]
[391496512,1760622641192,-1240.38,0.00019178,2]
[391496514,1760622641203,-500.0,0.00019178,2]
[391496516,1760622641214,-1100.81,0.00019178,2]
[391496518,1760622641224,-500.0,0.00019178,2]
[391496520,1760622641235,-1090.06,0.00019178,2]
[391496522,1760622641245,-500.4101636,0.00019178,2]
[391496523,1760622641255,-500.0,0.00019178,2]
[391496525,1760622641265,-500.0,0.00019178,2]
[391496527,1760622641276,-1443.66,0.00019178,2]
[391496529,1760622641286,-500.0,0.00019178,2]
[391496531,1760622641296,-500.0,0.00019178,2]
[391496533,1760622641306,-500.0,0.00019178,2]
[391496535,1760622641317,-443.34764141,0.00019178,2]
[391496537,1760622641327,-500.0,0.00019178,2]
[391496539,1760622641338,-500.60625574,0.00019178,2]
[391496541,1760622641347,-724.31,0.00019178,2]
[391496542,1760622641357,-500.0,0.00019178,2]
[391496544,1760622641370,-500.0,0.00019178,2]
[391496546,1760622641382,-1139.23,0.00019178,2]
[391496548,1760622641393,-500.0,0.00019178,2]
[391496550,1760622641403,-683.67,0.00019178,2]
[391496552,1760622641416,-517.79,0.00019178,2]
[391496554,1760622641428,-1781.74,0.00019178,2]
[391496555,1760622641438,-573.12,0.00019178,2]
[391496557,1760622641449,-1341.6,0.00019178,2]
[391496559,1760622641460,-500.0,0.00019178,2]
[391496561,1760622641470,-444.28237672,0.00019178,2]
[391496563,1760622641481,-500.0,0.00019178,2]
[391496565,1760622641490,-2246.33,0.00019178,2]
[391496567,1760622641500,-500.0,0.00019178,2]
[391496569,1760622641510,-500.0,0.00019178,2]
[391496571,1760622641520,-514.05,0.00019178,2]
[391496573,1760622641530,-449.74,0.00019178,2]
[391496575,1760622641540,-641.67,0.00019178,2]
[391496577,1760622641551,-500.0,0.00019178,2]
[391496579,1760622641561,-500.0,0.00019178,2]
[391496581,1760622641572,-500.0,0.00019178,2]
[391496582,1760622641582,-500.0,0.00019178,2]
[391496584,1760622641593,-500.0,0.00019178,2]
[391496586,1760622641603,-500.0,0.00019178,2]
[391496588,1760622641613,-554.81,0.00019178,2]
[391496590,1760622641623,-557.88,0.00019178,2]
[391496592,1760622641633,-1149.22,0.00019178,2]
[391496593,1760622641643,-500.0,0.00019178,2]
[391496595,1760622641653,-500.0,0.00019178,2]
[391496597,1760622641664,-500.0,0.00019178,2]
[391496599,1760622641674,-500.0,0.00019178,2]
[391496601,1760622641684,-500.0,0.00019178,2]
[391496603,1760622641694,-500.0,0.00019178,2]
[391496605,1760622641705,-500.0,0.00019178,2]
[391496606,1760622641715,-1416.24,0.00019178,2]
[391496608,1760622641725,-1416.24,0.00019178,2]
[391496610,1760622641736,-1416.24,0.00019178,2]
[391496612,1760622641746,-1416.24,0.00019178,2]
[391496614,1760622641756,-1416.24,0.00019178,2]
[391496616,1760622641767,-1416.24,0.00019178,2]
[391496618,1760622641777,-1416.24,0.00019178,2]
[391496620,1760622641787,-1416.24,0.00019178,2]
[391496622,1760622641798,-1416.24,0.00019178,2]
[391496624,1760622641808,-700.66,0.00019178,2]
[391496626,1760622641818,-500.0,0.00019178,2]
[391496627,1760622641827,-500.0,0.00019178,2]
[391496629,1760622641837,-905.7,0.00019178,2]
[391496631,1760622641847,-500.0,0.00019178,2]
[391496633,1760622641857,-629.53,0.00019178,2]
[391496635,1760622641867,-1416.24,0.00019178,2]
[391496636,1760622641878,-1416.24,0.00019178,2]
[391496637,1760622641888,-1416.24,0.00019178,2]
[391496638,1760622641898,-1416.24,0.00019178,2]
[391496639,1760622641908,-1416.24,0.00019178,2]
[391496640,1760622641921,-1416.24,0.00019178,2]
[391496641,1760622641931,-500.0,0.00019178,2]
[391496642,1760622641940,-1416.24,0.00019178,2]
[391496643,1760622641950,-500.0,0.00019178,2]
[391496644,1760622641961,-500.0,0.00019178,2]
[391496645,1760622641970,-500.0,0.00019178,2]
[391496646,1760622641981,-500.0,0.00019178,2]
[391496647,1760622641991,-500.0,0.00019178,2]
[391496648,1760622642001,-1302.07,0.00019178,2]
[391496650,1760622642011,-915.64,0.00019178,2]
[391496651,1760622642021,-500.0,0.00019178,2]
[391496653,1760622642031,-500.0,0.00019178,2]
[391496655,1760622642041,-500.0,0.00019178,2]
[391496657,1760622642051,-1568.29,0.00019178,2]
[391496659,1760622642061,-500.0,0.00019178,2]
[391496661,1760622642071,-2292.1,0.00019178,2]
[391496663,1760622642081,-501.05614493,0.00019178,2]
[391496665,1760622642091,-500.0,0.00019178,2]
[391496667,1760622642101,-838.03,0.00019178,2]
[391496669,1760622642110,-500.0,0.00019178,2]
[391496671,1760622642120,-500.0,0.00019178,2]
[391496673,1760622642130,-500.0,0.00019178,2]
[391496675,1760622642140,-151.0,0.00019178,2]
[391496677,1760622642150,-530.94,0.00019178,2]
[391496679,1760622642160,-414.09939389,0.00019178,2]
[391496681,1760622642174,-237.265146,0.00019178,2]
[391496683,1760622642183,-500.0,0.00019178,2]
[391496685,1760622642193,-1073.35,0.00019178,2]
[391496687,1760622642203,-514.51,0.00019178,2]
[391496689,1760622642214,-500.0,0.00019178,2]
[391496691,1760622642225,-500.0,0.00019178,2]
[391496693,1760622642235,-150.0,0.00019178,2]
[391496696,1760622642245,-500.0,0.00019178,2]
[391496698,1760622642255,-674.33,0.00019178,2]
[391496700,1760622642265,-2276.65,0.00019178,2]
[391496702,1760622642275,-2881.17,0.00019178,2]
[391496704,1760622642286,-168.5998643,0.00019178,2]
[391496706,1760622642296,-1969.14,0.00019178,2]
[391496708,1760622642306,-506.8,0.00019178,2]
[391496710,1760622642317,-500.0,0.00019178,2]
[391496712,1760622642327,-500.0,0.00019178,2]
[391496714,1760622642337,-2665.4,0.00019178,2]
[391496716,1760622642347,-500.0,0.00019178,2]
[391496718,1760622642358,-967.86,0.00019178,2]
[391496720,1760622642369,-1306.72,0.00019178,2]
[391496722,1760622642384,-500.0,0.00019178,2]
[391496725,1760622642394,-500.0,0.00019178,2]
[391496728,1760622642405,-500.0,0.00019178,2]
[391496731,1760622642417,-500.0,0.00019178,2]
[391496734,1760622642428,-500.0,0.00019178,2]
[391496737,1760622642438,-500.0,0.00019178,2]
[391496740,1760622642448,-1074.8,0.00019178,2]
[391496743,1760622642458,-1964.95,0.00019178,2]
[391496746,1760622642469,-970.11,0.00019178,2]
[391496749,1760622642479,-1990.16,0.00019178,2]
[391496751,1760622642489,-500.0,0.00019178,2]
[391496753,1760622642500,-500.0,0.00019178,2]
[391496755,1760622642511,-500.0,0.00019178,2]
[391496757,1760622642521,-264.22905632,0.00019178,2]
[391496759,1760622642531,-500.0,0.00019178,2]
[391496761,1760622642543,-1301.53,0.00019178,2]
[391496763,1760622642552,-500.0,0.00019178,2]
[391496765,1760622642562,-553.82,0.00019178,2]
[391496767,1760622642573,-500.0,0.00019178,2]
[391496769,1760622642582,-509.78495524,0.00019178,2]
[391496771,1760622642592,-4520.51,0.00019178,2]
[391496774,1760622642602,-789.28,0.00019178,2]
[391496777,1760622642612,-500.0,0.00019178,2]
[391496779,1760622642622,-500.0,0.00019178,2]
[391496781,1760622642631,-558.22257899,0.00019178,2]
[391496783,1760622642642,-4147.09,0.00019178,2]
[391496785,1760622642651,-500.0,0.00019178,2]
[391496787,1760622642661,-500.18592072,0.00019178,2]
[391496789,1760622642674,-500.0,0.00019178,2]
[391496791,1760622642684,-500.0,0.00019178,2]
[391496793,1760622642694,-1501.14,0.00019178,2]
[391496795,1760622642704,-1433.19,0.00019178,2]
[391496797,1760622642714,-500.0,0.00019178,2]
[391496799,1760622642724,-564.31419409,0.00019178,2]
[391496801,1760622642734,-500.0,0.00019178,2]
[391496803,1760622642744,-500.0,0.00019178,2]
[391496805,1760622642756,-500.0,0.00019178,2]
[391496807,1760622642766,-1539.59,0.00019178,2]
[391496809,1760622642776,-500.0,0.00019178,2]
[391496811,1760622642788,-500.0,0.00019178,2]
[391496813,1760622642799,-3973.53,0.00019178,2]
[391496816,1760622642810,-614.32,0.00019178,2]
[391496818,1760622642820,-500.0,0.00019178,2]
[391496820,1760622642831,-2404.78,0.00019178,2]
[391496822,1760622642840,-1494.66,0.00019178,2]
[391496824,1760622642850,-2343.65,0.00019178,2]
[391496826,1760622642860,-500.0,0.00019178,2]
[391496828,1760622642870,-552.05,0.00019178,2]
[391496830,1760622642880,-813.6,0.00019178,2]
[391496832,1760622642890,-500.0,0.00019178,2]
[391496834,1760622642900,-1946.37,0.00019178,2]
[391496836,1760622642909,-500.0,0.00019178,2]
[391496838,1760622642926,-500.0,0.00019178,2]
[391496840,1760622642935,-923.47,0.00019178,2]
[391496842,1760622642945,-150.0,0.00019178,2]
[391496844,1760622642955,-500.0,0.00019178,2]
[391496870,1760622643177,-500.0,0.00019178,2]
[391496872,1760622643202,-150.0,0.00019178,2]
[391496874,1760622643212,-1615.73,0.00019178,2]
[391496876,1760622643222,-500.0,0.00019178,2]
[391496879,1760622643232,-500.0,0.00019178,2]
[391496881,1760622643242,-500.0,0.00019178,2]
[391496883,1760622643252,-1206.47,0.00019178,2]
[391496885,1760622643261,-500.0,0.00019178,2]
[391496887,1760622643271,-500.0,0.00019178,2]
[391496889,1760622643280,-500.0,0.00019178,2]
[391496891,1760622643290,-500.0,0.00019178,2]
[391496893,1760622643300,-585.21,0.00019178,2]
[391496895,1760622643310,-500.0,0.00019178,2]
[391496897,1760622643319,-500.0,0.00019178,2]
[391496899,1760622643329,-931.93,0.00019178,2]
[391496901,1760622643338,-895.83,0.00019178,2]
[391496903,1760622643347,-500.0,0.00019178,2]
[391496904,1760622643357,-2076.34,0.00019178,2]
[391496905,1760622643368,-500.0,0.00019178,2]
[391496906,1760622643382,-500.0,0.00019178,2]
[391496907,1760622643393,-500.0,0.00019178,2]
[391496908,1760622643403,-500.0,0.00019178,2]
[391496909,1760622643417,-150.0,0.00019178,2]
[391496910,1760622643427,-500.0,0.00019178,2]
[391496912,1760622643437,-500.0,0.00019178,2]
[391496914,1760622643446,-538.35508747,0.00019178,2]
[391496916,1760622643456,-500.0,0.00019178,2]
[391496917,1760622643466,-500.0,0.00019178,2]
[391496918,1760622643476,-998.78,0.00019178,2]
[391496920,1760622643485,-770.87,0.00019178,2]
[391496921,1760622643494,-156.21851696,0.00019178,2]
[391496922,1760622643504,-500.0,0.00019178,2]
[391496923,1760622643513,-500.0,0.00019178,2]
[391496924,1760622643522,-150.0,0.00019178,2]
[391496925,1760622643531,-1934.39,0.00019178,2]
[391496926,1760622643541,-655.11,0.00019178,2]
[391496927,1760622643550,-1145.63,0.00019178,2]
[391496928,1760622643560,-500.0,0.00019178,2]
[391496929,1760622643569,-198.519304,0.00019178,2]
[391496930,1760622643578,-1115.42,0.00019178,2]
[391496931,1760622643588,-3254.25,0.00019178,2]
[391496932,1760622643597,-602.64,0.00019178,2]
[391496933,1760622643607,-151.0,0.00019178,2]
[391496934,1760622643616,-500.0,0.00019178,2]
[391496936,1760622643625,-301.99999961,0.00019178,2]
[391496938,1760622643635,-500.0,0.00019178,2]
[391496940,1760622643645,-500.0,0.00019178,2]
[391496942,1760622643654,-1942.01,0.00019178,2]
[391496944,1760622643667,-4483.55,0.00019178,2]
[391496945,1760622643676,-500.0,0.00019178,2]
[391496946,1760622643686,-3073.36,0.00019178,2]
[391496947,1760622643695,-500.0,0.00019178,2]
[391496949,1760622643704,-661.48,0.00019178,2]
[391496950,1760622643713,-500.0,0.00019178,2]
[391496951,1760622643723,-500.0,0.00019178,2]
[391496952,1760622643732,-500.0,0.00019178,2]
[391496953,1760622643741,-937.11,0.00019178,2]
[391496954,1760622643751,-566.92,0.00019178,2]
[391496955,1760622643760,-500.0,0.00019178,2]
[391496956,1760622643770,-876.18,0.00019178,2]
[391496957,1760622643779,-500.0,0.00019178,2]
[391496958,1760622643790,-500.0,0.00019178,2]
[391496959,1760622643801,-654.09,0.00019178,2]
[391496960,1760622643812,-832.28,0.00019178,2]